bitfinex/quotes_ETHUSD_20240819
["timestamp","ask_amount","ask_price","bid_price","bid_amount"]
[1724082545501,1.21493969,2593.5,2593.4,3.85593]
[1724082545740,1.2790949,2593.5,2593.4,3.85593]
[1724082545890,0.06415521,2593.5,2593.4,3.85593]
[1724082546090,0.06415521,2593.5,2593.4,4.627131]
[1724082546315,0.06415521,2593.5,2593.4,3.85593]
[1724082549337,0.87191069,2593.5,2593.4,3.85593]
[1724082549898,0.87191069,2593.5,2593.3,3.85602]
[1724082550198,0.80795384,2593.4,2593.3,3.85609]
[1724082550422,1.27927104,2593.4,2593.2,7.71234]
[1724082550689,0.80812265,2593.3,2593.2,7.71234]
[1724082550894,0.80812265,2593.3,2593.2,10.71234]
[1724082551218,0.87263014,2593.3,2593.2,10.71234]
[1724082552150,0.87263014,2593.3,2593.2,11.783574]
[1724082552356,0.87263014,2593.3,2593.2,14.097574]
[1724082554017,0.06450749,2593.3,2593.2,14.097574]
[1724082554258,0.87263014,2593.3,2593.2,14.097574]
[1724082554880,0.06450749,2593.3,2593.2,17.953804]
[1724082555420,0.80812265,2593.3,2593.2,17.953804]
[1724082555572,0.87261057,2593.3,2593.2,17.953804]
[1724082555776,0.80812265,2593.3,2593.2,17.953804]
[1724082555973,0.80812265,2593.3,2593.2,14.097574]
[1724082556343,1.21493969,2593.4,2593.3,7.71218]
[1724082556552,1.21493969,2593.4,2593.3,9.1219214]
[1724082557400,2.02113614,2593.4,2593.2,6.8562]
[1724082557560,1.61927173,2593.3,2593.0,3.85647]
[1724082557765,1.21447937,2593.1,2593.0,3.85647]
[1724082557980,1.61930583,2593.1,2593.0,6.85647]
[1724082558678,4.11490583,2593.1,2593.0,3.0]
[1724082559198,4.11490583,2593.1,2592.9,7.71328]
[1724082559382,1.61964176,2593.0,2592.9,3.85661]
[1724082560189,1.21468064,2593.0,2592.9,7.71329]
[1724082560344,1.21468064,2593.1,2593.0,3.85653]
[1724082560551,1.61964176,2593.1,2593.0,7.71306]
[1724082560757,1.61964176,2593.2,2593.1,7.71276]
[1724082561690,2.02408967,2593.3,2593.1,7.71276]
[1724082561897,2.02408967,2593.3,2593.1,3.85638]
[1724082562112,2.02457346,2593.3,2593.1,3.85638]
[1724082562399,2.02457346,2593.2,2592.9,3.85657]
[1724082562599,1.61984666,2593.1,2592.9,3.85657]
[1724082562758,1.61984666,2593.1,2592.9,7.71318]
[1724082563523,1.61984666,2593.1,2593.0,3.85653]
[1724082563708,1.61984666,2593.1,2593.0,8.48437]
[1724082563910,2.02457346,2593.3,2593.2,3.85623]
[1724082564624,1.61968598,2593.3,2593.2,7.71246]
[1724082565007,1.61968598,2593.4,2593.3,3.85609]
[1724082565210,2.02457346,2593.5,2593.4,3.85594]
[1724082565882,9.90948816,2593.7,2593.4,3.85594]
[1724082566235,2.42948816,2593.7,2593.3,7.71211]
[1724082566529,2.0246777,2593.4,2593.3,3.85602]
[1724082567787,4.3561777,2593.4,2593.1,3.85636]
[1724082568023,1.61980681,2593.2,2593.1,3.85636]
[1724082568227,1.61980681,2593.2,2593.1,6.85636]
[1724082568531,1.68405336,2593.2,2593.1,8.227642]
[1724082569085,1.68405336,2593.2,2593.1,3.0]
[1724082569397,3.92049655,2593.2,2592.8,11.13671]
[1724082569737,3.92049655,2593.2,2592.8,3.85683]
[1724082569738,1.62006788,2592.9,2592.8,3.85683]
[1724082570306,1.62006788,2593.0,2592.9,7.71336]
[1724082570565,1.62006788,2593.0,2592.9,3.85668]
[1724082571557,2.02481742,2593.2,2593.0,3.85653]
[1724082571731,1.61985223,2593.1,2593.0,3.85653]
[1724082575062,1.61985223,2593.2,2593.0,3.85653]
[1724082575265,1.61985223,2593.2,2593.1,3.85638]
[1724082575820,1.68408574,2593.2,2593.1,3.85638]
[1724082576026,0.06423351,2593.2,2593.1,3.85638]
[1724082576224,1.61970252,2593.2,2593.1,3.85638]
[1724082576426,0.06423351,2593.2,2593.1,3.85638]
[1724082576650,1.61972602,2593.2,2593.1,3.85638]
[1724082576853,2.02462901,2593.3,2593.1,3.85638]
[1724082577022,2.08886252,2593.2,2593.1,3.85638]
[1724082577366,1.68395453,2593.2,2593.1,4.627669]
[1724082577570,1.27901493,2593.2,2593.1,8.484049]
[1724082578132,1.21478142,2593.2,2593.1,8.484049]
[1724082580184,1.61972102,2593.3,2593.2,3.85623]
[1724082580475,1.68390886,2593.3,2593.2,7.71246]
[1724082580682,1.68390886,2593.3,2593.2,14.4236729]
[1724082580843,1.61972102,2593.3,2593.2,14.4236729]
[1724082581171,1.68392487,2593.3,2593.2,14.4236729]
[1724082581977,0.87402991,2593.3,2593.2,18.2799029]
[1724082582168,0.80984207,2593.3,2593.2,18.2799029]
[1724082582691,0.809675,2593.5,2593.4,2.2623]
[1724082582894,1.21476311,2593.7,2593.4,6.11824]
[1724082582895,0.809675,2593.6,2593.4,6.11824]
[1724082583171,0.809675,2593.6,2593.5,10.71158]
[1724082583381,0.809675,2593.7,2593.6,7.71128]
[1724082583675,1.61973703,2593.9,2593.8,3.85534]
[1724082585433,1.61973703,2594.0,2593.9,3.85519]
[1724082585655,2.02298856,2594.1,2593.9,3.85519]
[1724082585952,1.61806851,2594.0,2593.9,3.85519]
[1724082586376,1.61781518,2594.0,2593.9,3.85519]
[1724082586895,2.02298856,2594.1,2593.9,3.85519]
[1724082587052,2.02298856,2594.0,2593.8,3.85534]
[1724082587247,4.09383283,2593.9,2593.7,3.85541]
[1724082587479,1.21341226,2593.8,2593.7,3.85541]
[1724082587677,1.61783283,2593.8,2593.7,3.85541]
[1724082587876,1.61783283,2593.8,2593.6,6.85561]
[1724082588081,1.2133365,2593.7,2593.6,6.85561]
[1724082588662,0.80881805,2593.7,2593.6,7.85139213]
[1724082588877,0.80881805,2593.8,2593.7,7.71098]
[1724082589190,0.80881805,2593.8,2593.7,10.71098]
[1724082589426,0.80881805,2593.8,2593.7,11.88165321]
[1724082589722,0.80881805,2593.9,2593.8,3.85534]
[1724082590024,1.2133365,2594.0,2593.9,3.85519]
[1724082590725,1.27831359,2594.0,2593.9,3.85519]
[1724082590907,1.27831359,2594.0,2593.9,5.28985032]
[1724082591219,1.27831359,2594.0,2593.8,10.71057]
[1724082591428,0.80842217,2593.9,2593.8,10.71057]
[1724082591994,0.06497709,2593.9,2593.8,10.71057]
[1724082592360,0.87330532,2593.9,2593.8,10.71057]
[1724082592495,0.87330532,2593.9,2593.8,12.14523432]
[1724082592708,0.87330532,2593.9,2593.8,8.28989432]
[1724082592994,1.27831359,2593.9,2593.8,6.85523]
[1724082593397,0.87319093,2593.9,2593.8,6.85523]
[1724082593594,1.27831359,2593.9,2593.8,6.85523]
[1724082595185,1.27831359,2593.9,2593.8,10.71057]
[1724082595382,0.06497709,2593.9,2593.8,10.71057]
[1724082595611,0.87306613,2593.9,2593.8,10.71057]
[1724082595924,0.06497709,2593.9,2593.8,6.85523]
[1724082596278,0.87294735,2593.9,2593.8,6.85523]
[1724082596484,7.11315735,2593.9,2593.5,3.85572]
[1724082596682,7.11315735,2593.9,2593.3,6.30839]
[1724082596683,0.80797026,2593.7,2593.4,3.8558]
[1724082596896,0.87299952,2593.6,2593.5,3.85572]
[1724082597100,0.87299952,2593.6,2593.5,7.71151]
[1724082597341,0.06502926,2593.6,2593.5,7.71151]
[1724082597508,0.06502926,2593.6,2593.5,10.04261]
[1724082597713,0.80797026,2593.8,2593.7,3.85549]
[1724082598335,0.80797026,2593.9,2593.8,3.85534]
[1724082598514,0.80797026,2594.0,2593.9,3.85519]
[1724082598716,0.80780726,2594.0,2593.9,3.85519]
[1724082598948,1.2133365,2594.1,2593.8,2.3325]
[1724082598949,0.80780726,2594.1,2593.8,2.3325]
[1724082599153,0.80780726,2594.2,2594.0,3.85505]
[1724082599303,0.80780726,2594.2,2594.1,3.8549]
[1724082599742,0.80780726,2594.3,2594.1,3.8549]
[1724082600045,0.80780726,2594.2,2594.1,3.8549]
[1724082601104,1.2133365,2594.3,2594.1,3.8549]
[1724082601302,1.2133365,2594.2,2594.1,3.8549]
[1724082601749,1.2133365,2594.3,2594.1,3.8549]
[1724082601930,1.2133365,2594.3,2593.9,3.85519]
[1724082602131,0.80749962,2594.1,2594.0,3.0]
[1724082602330,0.80753659,2594.1,2593.9,3.0]
[1724082602852,3.05903659,2594.0,2593.7,3.85546]
[1724082603148,0.80753659,2594.0,2593.8,3.0]
[1724082603458,0.80753659,2594.0,2593.8,6.85533]
[1724082603612,0.80753659,2594.0,2593.8,3.0]
[1724082603808,0.80753659,2594.0,2593.8,6.85533]
[1724082604245,0.80753659,2594.0,2593.9,3.85519]
[1724082604447,0.80753659,2594.0,2593.8,6.85533]
[1724082604840,0.80753659,2594.0,2593.9,3.85519]
[1724082605640,0.87278103,2594.0,2593.9,3.85519]
[1724082605947,0.06524444,2594.0,2593.9,7.71038]
[1724082606157,0.06524444,2594.0,2593.9,12.029828]
[1724082606323,2.2515,2594.4,2594.0,3.85494]
[1724082606652,2.2515,2594.4,2594.1,3.85488]
[1724082606819,9.9365,2594.6,2594.2,3.85467]
[1724082607027,2.4565,2594.6,2594.2,3.85467]
[1724082607242,6.31072,2594.6,2594.1,3.85477]
[1724082607439,6.31072,2594.6,2594.1,7.7096]
[1724082607638,6.31072,2594.6,2594.1,3.85477]
[1724082608160,2.4565,2594.6,2594.2,3.85468]
[1724082609954,2.4565,2594.6,2594.3,3.8546]
[1724082610151,2.4565,2594.6,2593.9,3.0]
[1724082610152,2.3297,2594.9,2594.4,3.85445]
[1724082610352,2.3297,2594.9,2594.5,0.385445]
[1724082610567,2.3297,2594.9,2594.4,3.85445]
[1724082610852,2.3297,2594.9,2594.6,3.85408]
[1724082611853,2.3297,2594.9,2594.5,3.85429]
[1724082612412,6.18341,2594.9,2594.5,3.85429]
[1724082612611,6.18341,2594.9,2594.3,3.85459]
[1724082612612,3.85396,2594.8,2594.3,3.85459]
[1724082612852,3.85396,2594.8,2593.9,6.85511]
[1724082612853,3.8544,2594.5,2593.9,6.85513]
[1724082613024,6.28582,2594.7,2594.1,3.85483]
[1724082613025,2.4317,2594.4,2594.1,3.85483]
[1724082613354,2.83061937,2594.6,2594.2,3.85474]
[1724082613512,2.4317,2594.8,2594.4,3.85433]
[1724082613712,2.4317,2594.8,2594.5,3.85423]
[1724082613933,2.4317,2595.0,2594.6,3.85414]
[1724082614130,6.28533,2595.0,2594.6,3.85414]
[1724082615533,2.4317,2595.0,2594.6,3.85414]
[1724082615964,11.33324,2595.3,2594.6,3.85414]
[1724082615965,3.85328,2595.2,2594.6,3.85407]
[1724082616163,11.33324,2595.3,2594.8,3.85385]
[1724082616164,13.63352,2595.3,2594.8,3.85385]
[1724082616850,6.15352,2595.3,2594.8,3.85379]
[1724082617174,2.3004,2595.3,2594.8,6.946374]
[1724082617373,6.15354,2595.3,2594.8,6.946374]
[1724082618265,6.15354,2595.3,2594.8,10.800144]
[1724082618461,11.33292,2595.5,2595.0,3.85356]
[1724082618662,11.33292,2595.5,2595.0,4.9345614]
[1724082618663,7.48,2595.5,2595.0,4.9345614]
[1724082618881,7.48,2595.5,2595.1,3.8534]
[1724082619082,7.48,2595.5,2595.0,4.9345614]
[1724082619305,11.33283,2595.5,2595.0,3.85348]
[1724082619554,11.33283,2595.5,2594.7,3.0]
[1724082619555,7.48,2595.5,2595.2,3.85316]
[1724082619787,2.488,2595.8,2595.3,3.85303]
[1724082620388,2.488,2595.8,2595.4,3.85295]
[1724082620593,0.06581825,2595.7,2595.5,3.8528]
[1724082620968,3.85216,2596.0,2595.5,3.8528]
[1724082621168,0.06581825,2595.6,2595.5,3.85274]
[1724082621378,3.85204,2596.1,2595.6,3.85263]
[1724082622167,9.811,2596.2,2595.6,3.85263]
[1724082622396,13.66286,2596.2,2595.6,7.7052]
[1724082622691,13.66286,2596.2,2595.5,3.85274]
[1724082622692,3.85194,2596.1,2595.5,3.85274]
[1724082623045,2.3848,2595.8,2595.3,3.85301]
[1724082623271,2.3848,2595.8,2595.4,6.85289]
[1724082623807,6.23719,2595.8,2595.4,3.0]
[1724082624109,2.3848,2595.8,2595.4,6.85296]
[1724082624275,3.85223,2595.9,2595.4,6.85296]
[1724082624471,3.85238,2595.8,2595.4,3.0]
[1724082624910,3.8526,2595.7,2595.2,3.85318]
[1724082625702,2.4313,2595.5,2595.2,3.85318]
[1724082625903,6.28423,2595.5,2595.1,3.0]
[1724082626426,6.28374,2595.8,2595.2,3.85319]
[1724082626592,6.28374,2595.8,2595.3,3.85311]
[1724082627313,3.85252,2595.7,2595.2,3.85319]
[1724082628183,3.85252,2595.7,2595.1,3.0]
[1724082628385,0.80433791,2595.6,2595.1,3.0]
[1724082628621,3.85297,2595.4,2594.9,6.85369]
[1724082628823,6.20193,2595.3,2594.9,3.0]
[1724082629005,3.85363,2595.0,2594.5,3.85424]
[1724082629333,3.85353,2595.1,2594.2,9.5338]
[1724082629334,3.85352,2595.1,2594.6,3.85408]
[1724082629687,3.85357,2595.0,2594.6,3.85408]
[1724082630087,3.85381,2594.9,2594.3,0.95338]
[1724082630316,6.2655,2594.9,2594.3,3.85446]
[1724082630513,6.2655,2594.9,2594.1,3.85479]
[1724082630514,3.85388,2594.8,2594.1,7.7096]
[1724082630759,3.85388,2594.8,2593.7,6.30458]
[1724082630760,3.85456,2594.4,2593.7,6.30458]
[1724082630960,3.85456,2594.4,2593.4,1.06643509]
[1724082630961,3.85476,2594.2,2593.6,3.85558]
[1724082631167,3.85476,2594.2,2593.7,4.240968]
[1724082631371,3.85461,2594.3,2593.8,3.85526]
[1724082632432,3.85482,2594.2,2593.7,4.241028]
[1724082632631,3.85482,2594.2,2593.7,3.85547]
[1724082632959,3.85482,2594.2,2593.8,3.8553]
[1724082633277,3.8546,2594.3,2593.8,3.8553]
[1724082633629,3.85478,2594.2,2593.7,3.85542]
[1724082633831,3.85478,2594.2,2593.7,8.21608559]
[1724082634030,3.85478,2594.2,2593.7,4.36066559]
[1724082634258,3.85514,2594.0,2593.3,3.85601]
[1724082634531,3.85523,2593.9,2593.4,3.85592]
[1724082634731,6.96584791,2594.1,2593.0,2.3545]
[1724082634732,3.85566,2593.6,2593.0,2.3545]
[1724082634956,3.85566,2593.6,2593.1,3.85637]
[1724082635274,3.85601,2593.4,2592.9,4.30373792]
[1724082635476,3.85601,2593.4,2592.9,3.85657]
[1724082635644,0.06486644,2593.3,2593.1,3.85638]
[1724082636172,0.06486644,2593.2,2593.1,3.85638]
[1724082636571,2.4968,2593.5,2593.1,3.85638]
[1724082636753,0.06486644,2593.2,2592.9,3.85657]
[1724082636957,3.85601,2593.4,2593.0,3.0]
[1724082637160,0.06486644,2593.1,2593.0,3.0]
[1724082637368,3.85601,2593.4,2593.0,3.0]
[1724082637600,0.06486644,2593.1,2592.7,3.85697]
[1724082637897,6.15579,2593.3,2592.8,3.85683]
[1724082638041,0.06446203,2593.0,2592.7,7.71382]
[1724082638259,3.85624,2593.2,2592.7,8.485202]
[1724082638458,2.2997,2593.3,2592.8,3.85683]
[1724082638965,0.06429835,2593.2,2592.8,3.85683]
[1724082639402,6.15584,2593.3,2592.8,3.85683]
[1724082639610,0.06429835,2593.1,2592.8,3.85683]
[1724082639780,0.06427877,2593.2,2592.8,3.85683]
[1724082639983,6.15584,2593.3,2592.9,3.85667]
[1724082640182,0.06427877,2593.1,2592.9,3.85667]
[1724082640493,0.06427877,2593.0,2592.9,3.85667]
[1724082640691,2.2997,2593.3,2592.9,3.85667]
[1724082640863,2.2997,2593.3,2592.9,8.5617732]
[1724082641073,0.06415478,2593.2,2593.0,3.85642]
[1724082641290,11.33596,2593.4,2592.9,4.7051032]
[1724082641488,0.06415478,2593.3,2592.9,3.85661]
[1724082641695,0.06415478,2593.3,2592.9,3.85659]
[1724082641914,0.06415478,2593.3,2593.2,3.85623]
[1724082643662,0.06415478,2593.3,2593.1,3.85636]
[1724082643866,6.2975,2593.7,2593.1,3.85636]
[1724082644385,3.9200153,2593.6,2593.1,3.85636]
[1724082645311,3.85593,2593.5,2593.0,3.85649]
[1724082645840,0.06430487,2593.4,2593.0,3.85649]
[1724082646414,3.92025487,2593.4,2592.9,3.85658]
[1724082646597,3.8563,2593.2,2592.7,3.85698]
[1724082646951,0.06373083,2593.1,2592.9,3.85668]
[1724082647303,3.85609,2593.3,2592.9,3.85668]
[1724082647526,0.06373083,2593.2,2592.8,3.85676]
[1724082647738,3.85609,2593.3,2592.8,7.71351]
[1724082647941,0.06373083,2593.2,2592.9,3.85659]
[1724082648243,7.71182,2593.5,2593.0,3.85651]
[1724082648547,3.85591,2593.5,2592.9,3.85667]
[1724082648714,0.06367863,2593.4,2592.9,3.85667]
[1724082649121,0.06367863,2593.4,2592.9,7.71327]
[1724082649448,0.06367863,2593.4,2593.0,3.85653]
[1724082649664,0.06367863,2593.4,2593.1,3.85638]
[1724082650061,0.06367863,2593.4,2593.1,7.71257]
[1724082650248,2.442,2593.7,2593.1,3.85626]
[1724082650589,6.29756,2593.7,2593.2,3.85622]
[1724082650722,0.06366557,2593.6,2593.2,3.85622]
[1724082651029,3.91930557,2593.6,2593.2,1.018498]
[1724082651359,0.06366557,2593.6,2593.2,3.85622]
[1724082651753,3.91930557,2593.6,2593.2,3.85622]
[1724082652264,0.06366557,2593.6,2593.4,3.8558]
[1724082652467,0.06366557,2593.6,2593.5,3.85579]
[1724082652664,11.33521,2593.9,2593.5,3.85579]
[1724082652835,0.06382218,2593.6,2593.4,3.85592]
[1724082653163,0.06382218,2593.5,2593.4,3.85592]
[1724082653691,11.33521,2593.9,2593.4,3.85592]
[1724082654135,0.06386133,2593.8,2593.5,3.85575]
[1724082654324,0.06386133,2593.8,2593.4,3.85587]
[1724082655041,3.91922133,2593.8,2593.4,3.85586]
[1724082656355,3.85569,2593.6,2593.2,3.85611]
[1724082656524,0.06386133,2593.8,2593.7,3.85549]
[1724082657223,11.33477,2594.2,2593.7,3.85549]
[1724082657537,15.18963,2594.2,2593.7,3.85549]
[1724082657855,0.06426583,2594.1,2593.7,3.85549]
[1724082659139,0.06426583,2594.1,2593.7,1.008143]
[1724082659353,6.14312,2594.3,2593.8,3.85522]
[1724082659667,0.06437019,2594.0,2593.9,3.85519]
[1724082659870,6.14312,2594.3,2593.9,4.626247]
[1724082660031,0.06437019,2594.0,2593.9,4.626247]
[1724082660231,6.14312,2594.3,2593.9,4.626247]
[1724082660431,6.14312,2594.3,2593.9,0.771057]
[1724082660432,0.06450063,2594.0,2593.9,0.771057]
[1724082660632,6.14312,2594.3,2593.9,0.771057]
[1724082660827,0.06450063,2594.0,2593.8,3.85533]
[1724082661029,2.2885,2594.3,2593.9,7.71029]
[1724082661240,3.85423,2594.6,2593.9,2.2798]
[1724082661475,3.85423,2594.6,2594.1,3.85483]
[1724082661768,3.85431,2594.5,2593.9,6.13488]
[1724082661977,3.85431,2594.5,2593.9,3.85508]
[1724082662124,3.85461,2594.3,2593.9,3.85508]
[1724082662330,3.85447,2594.4,2593.9,3.85508]
[1724082662525,3.85447,2594.4,2593.9,7.7102]
[1724082662961,3.85447,2594.4,2593.9,8.48122]
[1724082663167,3.85447,2594.4,2594.0,3.85504]
[1724082663477,3.85419,2594.6,2594.1,3.85487]
[1724082663928,2.3604,2594.7,2594.3,3.85449]
[1724082664131,2.3604,2594.7,2594.4,3.85443]
[1724082664368,6.26091,2594.9,2594.4,3.85443]
[1724082664959,10.11473,2594.9,2594.4,3.85443]
[1724082665161,0.80433791,2595.2,2594.5,3.85422]
[1724082665162,3.85366,2595.0,2594.5,3.85422]
[1724082665531,3.91842626,2594.9,2594.5,3.85422]
[1724082666690,7.77226626,2594.9,2594.4,3.85444]
[1724082666894,7.77224626,2594.9,2594.4,3.85444]
[1724082667249,3.85401,2594.7,2594.2,3.85473]
[1724082667449,7.70812,2594.7,2594.2,3.85473]
[1724082667645,7.70812,2594.7,2594.1,3.85482]
[1724082667646,3.85401,2594.7,2594.1,3.85482]
[1724082667854,3.85447,2594.4,2593.9,5.2987]
[1724082668178,0.06550481,2594.3,2594.0,3.0]
[1724082668387,0.06550481,2594.3,2594.0,6.855]
[1724082669865,3.92011481,2594.3,2594.0,3.0]
[1724082670067,3.92011481,2594.3,2593.9,3.85518]
[1724082670719,0.06550481,2594.3,2594.0,3.85504]
[1724082671072,3.85447,2594.4,2594.0,3.85504]
[1724082671273,0.0653614,2594.2,2594.0,3.85504]
[1724082671572,0.0653614,2594.1,2594.0,3.85504]
[1724082672136,0.0653614,2594.1,2594.0,10.797912]
[1724082672413,0.80433791,2594.6,2594.2,3.85474]
[1724082672794,0.06534836,2594.5,2594.2,3.85474]
[1724082673005,0.06534836,2594.5,2594.0,2.3168]
[1724082673217,6.30145,2594.4,2593.9,3.85512]
[1724082673367,0.86968627,2594.5,2593.9,3.85512]
[1724082673570,0.06538095,2594.3,2594.0,6.17176]
[1724082673799,0.80433791,2594.4,2594.0,3.85496]
[1724082674109,0.0653614,2594.2,2594.0,3.85496]
[1724082674319,4.65864791,2594.5,2593.9,3.85512]
[1724082674320,0.80433791,2594.4,2593.9,3.85512]
[1724082674469,0.0653614,2594.1,2593.9,7.71023]
[1724082674668,0.80433791,2594.5,2594.0,3.85497]
[1724082674911,0.80433791,2594.4,2594.1,3.85489]
[1724082675114,0.86969279,2594.4,2594.1,3.85489]
[1724082675770,0.86969279,2594.4,2593.9,7.71016]
[1724082676342,0.80433791,2594.3,2593.9,3.85505]
[1724082676485,3.31659279,2594.4,2593.9,3.85505]
[1724082676687,3.25123791,2594.4,2593.9,3.85505]
[1724082677027,0.06535488,2594.3,2594.0,3.85504]
[1724082677420,0.06535488,2594.3,2594.1,3.85487]
[1724082677924,0.06535488,2594.3,2594.2,3.85475]
[1724082678322,0.06535488,2594.3,2594.0,10.02666]
[1724082678523,0.80433791,2594.5,2594.1,6.85489]
[1724082679038,0.06522448,2594.4,2594.1,6.85489]
[1724082679587,3.85466,2594.3,2593.8,3.85531]
[1724082679789,8.57861239,2594.4,2593.9,3.85518]
[1724082680115,4.65884791,2594.4,2593.9,3.85518]
[1724082680316,0.06522448,2594.3,2594.0,3.85503]
[1724082680793,0.06522448,2594.3,2594.0,7.71]
[1724082681135,0.06522448,2594.3,2594.0,3.85497]
[1724082681445,0.06522448,2594.3,2594.2,3.85475]
[1724082681929,0.80433791,2594.5,2594.2,3.85475]
[1724082682139,0.06521144,2594.3,2594.2,3.85475]
[1724082682845,0.80433791,2594.5,2594.2,3.85475]
[1724082683011,0.06521144,2594.3,2594.2,3.85475]
[1724082683212,0.80433791,2594.5,2594.1,3.85488]
[1724082683489,0.06525055,2594.3,2593.9,3.85508]
[1724082683633,0.80433791,2594.5,2593.9,3.85508]
[1724082683634,8.51347791,2594.4,2593.9,3.85508]
[1724082683956,8.51347791,2594.4,2593.7,9.23401]
[1724082683957,4.72435846,2594.2,2593.7,9.23401]
[1724082684156,4.65910791,2594.2,2593.7,9.23401]
[1724082684454,0.065231,2594.1,2593.7,9.23401]
[1724082684743,0.86956891,2594.1,2593.7,9.23401]
[1724082686449,0.065231,2594.1,2593.7,9.23401]
[1724082686616,0.86956891,2594.1,2593.7,9.23401]
[1724082687264,0.86956891,2594.1,2593.7,3.0]
[1724082687409,0.80433791,2594.0,2593.6,3.85551]
[1724082687609,0.80433791,2594.0,2593.7,3.85546]
[1724082687910,0.06514624,2593.9,2593.7,3.85546]
[1724082688306,0.06514624,2593.9,2593.8,3.85534]
[1724082688749,0.80433791,2594.2,2594.0,3.85492]
[1724082688925,0.0648137,2594.1,2594.0,3.85492]
[1724082689121,0.80433791,2594.3,2594.0,3.85492]
[1724082689436,12.54095687,2594.4,2593.9,2.4168]
[1724082689437,0.86915161,2594.2,2593.9,3.85519]
[1724082690246,0.0648137,2594.2,2593.9,3.85519]
[1724082690436,0.0648137,2594.2,2594.0,3.85502]
[1724082690620,0.80433791,2594.3,2594.0,3.85502]
[1724082690821,0.06489195,2594.1,2594.0,3.85502]
[1724082691036,0.80433791,2594.3,2594.0,3.85502]
[1724082691237,0.06492455,2594.1,2594.0,3.85502]
[1724082691444,0.80433791,2594.3,2594.0,3.85502]
[1724082691648,0.06492455,2594.1,2594.0,3.85493]
[1724082691957,0.06493759,2594.1,2594.0,3.85493]
[1724082692251,0.80433791,2594.3,2594.0,3.85493]
[1724082692454,0.06493759,2594.1,2594.0,8.480988]
[1724082692612,0.80433791,2594.3,2594.2,3.85475]
[1724082693013,0.80716431,2594.3,2594.2,3.85475]
[1724082693353,0.8071927,2594.3,2594.2,3.85475]
[1724082693540,8.68650687,2594.4,2594.2,3.85475]
[1724082694032,8.68650687,2594.4,2594.0,3.85503]
[1724082694033,1.20650687,2594.3,2594.0,3.85503]
[1724082694238,0.80740023,2594.2,2594.0,3.85503]
[1724082694638,1.20650687,2594.3,2594.0,3.85503]
[1724082694639,0.80740023,2594.1,2594.0,3.85503]
[1724082695150,0.80740023,2594.2,2594.0,3.85503]
[1724082695356,0.80740023,2594.1,2594.0,3.85503]
[1724082695712,0.87237042,2594.1,2594.0,3.85503]
[1724082696059,0.06497019,2594.1,2594.0,11.203615]
[1724082696211,0.06497019,2594.1,2594.0,10.20738]
[1724082696640,0.06497019,2594.1,2594.0,6.35233]
[1724082696855,0.87237042,2594.1,2594.0,6.35233]
[1724082697542,0.06497019,2594.1,2594.0,10.20738]
[1724082697753,0.06497019,2594.1,2594.0,14.613635]
[1724082698061,0.80740023,2594.3,2594.2,7.7095]
[1724082698644,1.20650687,2594.4,2594.2,7.7095]
[1724082698645,1.20650687,2594.4,2594.3,3.8546]
[1724082699364,1.60867583,2594.4,2594.3,3.8546]
[1724082699534,1.60867583,2594.4,2594.2,3.85472]
[1724082699742,1.21250027,2594.3,2594.2,3.85472]
[1724082700066,1.60867583,2594.3,2594.0,10.70991]
[1724082700267,1.21281956,2594.2,2594.0,10.70991]
[1724082700450,0.80852517,2594.2,2594.0,11.1592701]
[1724082700757,0.80852517,2594.1,2594.0,11.1592701]
[1724082701429,1.21281956,2594.1,2594.0,11.1592701]
[1724082701759,1.21281956,2594.1,2594.0,6.85495]
[1724082703012,1.21281956,2594.1,2594.0,10.71]
[1724082703446,1.21281956,2594.1,2594.0,6.85495]
[1724082704160,1.21281956,2594.1,2594.0,10.71]
[1724082704759,1.60867583,2594.3,2594.2,3.85475]
[1724082705260,1.60867583,2594.3,2594.2,7.7095]
[1724082705465,1.60867583,2594.3,2594.2,9.02455]
[1724082706220,1.60867583,2594.4,2594.3,3.8546]
[1724082706368,1.60867583,2594.4,2594.3,7.7092]
[1724082707874,1.60867583,2594.4,2594.3,3.8546]
[1724082708322,2.02361564,2594.4,2594.3,3.8546]
[1724082708814,2.02361564,2594.5,2594.3,3.8546]
[1724082709314,2.02356247,2594.4,2594.3,3.8546]
[1724082710310,2.02356247,2594.4,2594.1,3.85489]
[1724082710629,1.61889266,2594.2,2594.0,3.0]
[1724082710790,8.16239247,2594.2,2593.7,3.85542]
[1724082710978,1.21438287,2593.8,2593.7,3.85542]
[1724082711184,1.27977035,2593.8,2593.7,3.85542]
[1724082712092,1.68456464,2593.8,2593.7,3.85542]
[1724082712507,0.06538748,2593.8,2593.7,3.85542]
[1724082712710,1.68456464,2593.8,2593.7,3.85542]
[1724082713223,0.06538748,2593.8,2593.7,3.85542]
[1724082713628,0.06538748,2593.8,2593.7,6.85542]
[1724082714028,1.68456464,2593.8,2593.7,6.85542]
[1724082714245,0.06538748,2593.8,2593.7,6.85542]
[1724082714742,1.68456464,2593.8,2593.7,6.85542]
[1724082714946,0.06538748,2593.8,2593.7,6.85542]
[1724082715142,1.27947954,2593.8,2593.7,6.85542]
[1724082715515,1.27943319,2593.8,2593.7,6.85542]
[1724082715716,1.27943319,2593.8,2593.7,11.782012]
[1724082716703,0.06538748,2593.8,2593.7,11.782012]
[1724082716908,1.27943319,2593.8,2593.7,11.782012]
[1724082717860,0.06538748,2593.8,2593.7,17.943402]
[1724082718145,1.21404571,2594.0,2593.9,7.71038]
[1724082718146,0.80929576,2594.0,2593.9,7.71038]
[1724082718347,0.80929576,2594.0,2593.9,12.5046522]
[1724082718547,0.87452675,2594.0,2593.9,12.5046522]
[1724082718722,0.87452675,2594.0,2593.9,14.8105522]
[1724082719334,0.06523099,2594.0,2593.9,18.6657422]
[1724082719843,0.80929576,2594.2,2594.1,7.7098]
[1724082720048,1.21404571,2594.3,2594.2,7.7095]
[1724082720619,1.21404571,2594.3,2594.2,3.85475]
[1724082720836,1.61917716,2594.3,2594.2,3.85475]
[1724082721831,1.61917716,2594.3,2593.8,3.85523]